[Event "*** Titled Tuesday Blitz"]
[Site "Chess.com"]
[Date "2021.02.02"]
[Round "5"]
[White "andrzej"]
[Black "chegueps"]
[Result "0-1"]
[WhiteElo "2281"]
[BlackElo "2504"]
[TimeControl "180+1"]
[EndTime "10:59:04 PST"]
[Termination "chegueps won on time"]

1. e4 {[%clk 0:03:00.9]} 1... e5 {[%clk 0:02:59.1]} 2. Nf3 {[%clk 0:03:00]} 2...
Nc6 {[%clk 0:02:58.7]} 3. d4 {[%clk 0:03:00.6]} 3... exd4 {[%clk 0:02:57.6]} 4.
Nxd4 {[%clk 0:03:01.5]} 4... d6 {[%clk 0:02:47.7]} 5. Nc3 {[%clk 0:02:57.3]}
5... Nf6 {[%clk 0:02:39]} 6. f3 {[%clk 0:02:55.3]} 6... g6 {[%clk 0:02:36.9]} 7.
Be3 {[%clk 0:02:55.2]} 7... Bg7 {[%clk 0:02:36.8]} 8. Qd2 {[%clk 0:02:55.6]}
8... Bd7 {[%clk 0:02:36.6]} 9. O-O-O {[%clk 0:02:54.9]} 9... a6 {[%clk
0:02:36.5]} 10. Kb1 {[%clk 0:02:53.4]} 10... Qe7 {[%clk 0:02:32.8]} 11. g4
{[%clk 0:02:43.7]} 11... Nxd4 {[%clk 0:02:28.8]} 12. Bxd4 {[%clk 0:02:37.4]}
12... Bc6 {[%clk 0:02:28.4]} 13. h4 {[%clk 0:02:23.6]} 13... O-O-O {[%clk
0:02:24.2]} 14. h5 {[%clk 0:02:21.8]} 14... h6 {[%clk 0:02:04.9]} 15. hxg6
{[%clk 0:02:08.9]} 15... fxg6 {[%clk 0:02:04.2]} 16. Bc4 {[%clk 0:01:53.6]}
16... h5 {[%clk 0:01:52.2]} 17. g5 {[%clk 0:01:47.7]} 17... Nd7 {[%clk
0:01:51.6]} 18. f4 {[%clk 0:01:34]} 18... Nc5 {[%clk 0:01:39.7]} 19. Rhe1 {[%clk
0:01:14.9]} 19... h4 {[%clk 0:01:16.2]} 20. Bxg7 {[%clk 0:01:05.8]} 20... Qxg7
{[%clk 0:01:15.2]} 21. f5 {[%clk 0:01:06.3]} 21... Qe5 {[%clk 0:01:07.2]} 22.
fxg6 {[%clk 0:00:58.5]} 22... h3 {[%clk 0:01:06.1]} 23. Bd5 {[%clk 0:00:44.4]}
23... Be8 {[%clk 0:00:48.2]} 24. Bf7 {[%clk 0:00:35.5]} 24... h2 {[%clk
0:00:45.7]} 25. Qg2 {[%clk 0:00:29.7]} 25... Rh5 {[%clk 0:00:19.1]} 26. Rh1
{[%clk 0:00:23.1]} 26... Kb8 {[%clk 0:00:17.2]} 27. Nd5 {[%clk 0:00:15.4]} 27...
Rxg5 {[%clk 0:00:12.1]} 28. Qxh2 {[%clk 0:00:15.5]} 28... Nxe4 {[%clk
0:00:09.1]} 29. Qxe5 {[%clk 0:00:12]} 29... dxe5 {[%clk 0:00:09.4]} 30. Bxe8
{[%clk 0:00:09.9]} 30... Rxe8 {[%clk 0:00:08.9]} 31. Rhe1 {[%clk 0:00:08.9]}
31... Nd6 {[%clk 0:00:06.4]} 32. Nf6 {[%clk 0:00:06.6]} 32... Re6 {[%clk
0:00:04.6]} 33. Nd7+ {[%clk 0:00:06.3]} 33... Ka7 {[%clk 0:00:04.4]} 34. Nc5
{[%clk 0:00:03.5]} 34... Rexg6 {[%clk 0:00:04]} 35. a4 {[%clk 0:00:01.2]} 35...
b6 {[%clk 0:00:04.3]} 0-1

[Event "*** Titled Tuesday Blitz"]
[Site "Chess.com"]
[Date "2021.02.02"]
[Round "5"]
[White "Grineva_Marianna"]
[Black "J36225"]
[Result "0-1"]
[WhiteElo "2250"]
[BlackElo "2432"]
[TimeControl "180+1"]
[EndTime "10:59:05 PST"]
[Termination "J36225 won by checkmate"]

1. e4 {[%clk 0:03:00.9]} 1... e5 {[%clk 0:02:59.4]} 2. Nf3 {[%clk 0:02:56.2]}
2... Nc6 {[%clk 0:02:58.9]} 3. Bb5 {[%clk 0:02:55.1]} 3... a6 {[%clk 0:02:58]}
4. Ba4 {[%clk 0:02:55.3]} 4... Nf6 {[%clk 0:02:57.9]} 5. O-O {[%clk 0:02:54.8]}
5... Nxe4 {[%clk 0:02:57.8]} 6. d4 {[%clk 0:02:55]} 6... b5 {[%clk 0:02:57.5]}
7. Bb3 {[%clk 0:02:53.4]} 7... d5 {[%clk 0:02:57.5]} 8. dxe5 {[%clk 0:02:51]}
8... Be6 {[%clk 0:02:56.7]} 9. c3 {[%clk 0:02:45.1]} 9... Be7 {[%clk 0:02:54.8]}
10. Bc2 {[%clk 0:02:28.2]} 10... O-O {[%clk 0:02:49.7]} 11. Re1 {[%clk
0:02:19.7]} 11... Bg4 {[%clk 0:02:31]} 12. Bf4 {[%clk 0:02:14.9]} 12... Nc5
{[%clk 0:02:25.1]} 13. h3 {[%clk 0:02:07.2]} 13... Bh5 {[%clk 0:02:17.9]} 14. g4
{[%clk 0:01:45.9]} 14... Bg6 {[%clk 0:02:17.1]} 15. Bf5 {[%clk 0:01:43]} 15...
Ne6 {[%clk 0:01:59.5]} 16. Bg3 {[%clk 0:01:35.6]} 16... Bg5 {[%clk 0:01:34.4]}
17. Nxg5 {[%clk 0:01:10]} 17... Qxg5 {[%clk 0:01:33.6]} 18. Qd2 {[%clk
0:00:58.3]} 18... Bxf5 {[%clk 0:01:18.1]} 19. Qxg5 {[%clk 0:00:56.4]} 19... Nxg5
{[%clk 0:01:18.1]} 20. gxf5 {[%clk 0:00:56.9]} 20... Nf3+ {[%clk 0:01:18.2]} 21.
Kf1 {[%clk 0:00:56.2]} 21... Nxe1 {[%clk 0:01:18.3]} 22. Kxe1 {[%clk 0:00:57.1]}
22... Nxe5 {[%clk 0:01:18.5]} 23. Bxe5 {[%clk 0:00:45.4]} 23... Rfe8 {[%clk
0:01:17.8]} 24. f4 {[%clk 0:00:45.8]} 24... f6 {[%clk 0:01:17.6]} 25. Nd2 {[%clk
0:00:43.3]} 25... fxe5 {[%clk 0:01:18.5]} 26. Kf2 {[%clk 0:00:40.6]} 26... exf4
{[%clk 0:01:17]} 27. Nf3 {[%clk 0:00:40.5]} 27... Re3 {[%clk 0:01:16.5]} 28. Rg1
{[%clk 0:00:36]} 28... Rae8 {[%clk 0:01:14.3]} 29. Nd4 {[%clk 0:00:35.5]} 29...
c5 {[%clk 0:01:05.1]} 30. Ne6 {[%clk 0:00:34.3]} 30... R3xe6 {[%clk 0:01:04.9]}
31. fxe6 {[%clk 0:00:35.2]} 31... Rxe6 {[%clk 0:01:05.6]} 32. Rg5 {[%clk
0:00:31.4]} 32... Rd6 {[%clk 0:01:02.8]} 33. Rf5 {[%clk 0:00:28.1]} 33... h6
{[%clk 0:00:55.1]} 34. Rxf4 {[%clk 0:00:26.8]} 34... Rf6 {[%clk 0:00:54.9]} 35.
Ke3 {[%clk 0:00:26.5]} 35... Rxf4 {[%clk 0:00:50.7]} 36. Kxf4 {[%clk 0:00:27.4]}
36... g5+ {[%clk 0:00:49.6]} 37. Ke5 {[%clk 0:00:26.8]} 37... h5 {[%clk
0:00:47.1]} 38. Kxd5 {[%clk 0:00:22.1]} 38... Kf7 {[%clk 0:00:44.8]} 39. Kxc5
{[%clk 0:00:19.7]} 39... g4 {[%clk 0:00:44.9]} 40. hxg4 {[%clk 0:00:19.1]} 40...
h4 {[%clk 0:00:45.2]} 41. Kb6 {[%clk 0:00:19.1]} 41... h3 {[%clk 0:00:45.1]} 42.
Kxa6 {[%clk 0:00:19.8]} 42... h2 {[%clk 0:00:45.4]} 43. Kxb5 {[%clk 0:00:20.5]}
43... h1=Q {[%clk 0:00:45.6]} 44. b4 {[%clk 0:00:21]} 44... Qd5+ {[%clk
0:00:43.6]} 45. Kb6 {[%clk 0:00:20.7]} 45... Qxa2 {[%clk 0:00:43.1]} 46. Kc5
{[%clk 0:00:21.2]} 46... Qf2+ {[%clk 0:00:40.7]} 47. Kb5 {[%clk 0:00:19.6]}
47... Ke6 {[%clk 0:00:39.6]} 48. c4 {[%clk 0:00:18.4]} 48... Kd6 {[%clk
0:00:37.7]} 49. c5+ {[%clk 0:00:16.7]} 49... Kc7 {[%clk 0:00:37.8]} 50. g5
{[%clk 0:00:14.4]} 50... Qe2+ {[%clk 0:00:36.8]} 51. Ka4 {[%clk 0:00:13.3]}
51... Kc6 {[%clk 0:00:35]} 52. g6 {[%clk 0:00:12.6]} 52... Qa2# {[%clk
0:00:34.3]} 0-1

[Event "*** Titled Tuesday Blitz"]
[Site "Chess.com"]
[Date "2021.02.02"]
[Round "5"]
[White "chess4ever007"]
[Black "doons21"]
[Result "0-1"]
[WhiteElo "2361"]
[BlackElo "2546"]
[TimeControl "180+1"]
[EndTime "10:59:08 PST"]
[Termination "doons21 won by checkmate"]

1. Nf3 {[%clk 0:02:59.7]} 1... Nf6 {[%clk 0:02:59.6]} 2. d4 {[%clk 0:02:57.1]}
2... g6 {[%clk 0:02:59.7]} 3. c4 {[%clk 0:02:56.9]} 3... Bg7 {[%clk 0:03:00.2]}
4. Nc3 {[%clk 0:02:56.8]} 4... O-O {[%clk 0:03:01.1]} 5. e4 {[%clk 0:02:57.1]}
5... d6 {[%clk 0:03:01.4]} 6. Be2 {[%clk 0:02:57.8]} 6... e5 {[%clk 0:03:01.7]}
7. O-O {[%clk 0:02:58.2]} 7... Nc6 {[%clk 0:02:57.2]} 8. d5 {[%clk 0:02:58.4]}
8... Ne7 {[%clk 0:02:57.7]} 9. Ne1 {[%clk 0:02:59]} 9... Nd7 {[%clk 0:02:55.5]}
10. Nd3 {[%clk 0:02:59]} 10... f5 {[%clk 0:02:56.1]} 11. f3 {[%clk 0:02:59.6]}
11... f4 {[%clk 0:02:54.2]} 12. Bd2 {[%clk 0:03:00.1]} 12... g5 {[%clk
0:02:49.2]} 13. Rc1 {[%clk 0:03:00.4]} 13... h5 {[%clk 0:02:47.4]} 14. c5 {[%clk
0:02:58.7]} 14... a6 {[%clk 0:02:42.8]} 15. c6 {[%clk 0:02:32]} 15... Nf6 {[%clk
0:02:40.3]} 16. cxb7 {[%clk 0:02:26.1]} 16... Bxb7 {[%clk 0:02:41.2]} 17. Nf2
{[%clk 0:02:04.1]} 17... Rf7 {[%clk 0:02:31]} 18. Na4 {[%clk 0:01:59.2]} 18...
Ng6 {[%clk 0:02:25]} 19. Ba5 {[%clk 0:01:56.5]} 19... Bc8 {[%clk 0:02:23.1]} 20.
Qc2 {[%clk 0:01:42.9]} 20... Ne8 {[%clk 0:01:52.7]} 21. Qd2 {[%clk 0:01:04.9]}
21... Bd7 {[%clk 0:01:38.3]} 22. b3 {[%clk 0:01:04]} 22... Bf8 {[%clk
0:01:30.1]} 23. Rc2 {[%clk 0:01:03.6]} 23... Nh4 {[%clk 0:01:11.4]} 24. Rfc1
{[%clk 0:01:01.6]} 24... Ra7 {[%clk 0:01:09.4]} 25. Rc3 {[%clk 0:00:35.7]} 25...
Rg7 {[%clk 0:01:07.2]} 26. h3 {[%clk 0:00:36]} 26... g4 {[%clk 0:00:33]} 27.
hxg4 {[%clk 0:00:36.9]} 27... hxg4 {[%clk 0:00:33.2]} 28. Nxg4 {[%clk
0:00:37.2]} 28... Qg5 {[%clk 0:00:17.9]} 29. Bxc7 {[%clk 0:00:28.6]} 29... Bxg4
{[%clk 0:00:17.2]} 30. fxg4 {[%clk 0:00:26.9]} 30... Raxc7 {[%clk 0:00:16.8]}
31. Nb6 {[%clk 0:00:23.8]} 31... Rxc3 {[%clk 0:00:16.2]} 32. Qxc3 {[%clk
0:00:21.8]} 32... Nf6 {[%clk 0:00:15.7]} 33. Qh3 {[%clk 0:00:19.9]} 33... Nxe4
{[%clk 0:00:13.3]} 34. Rc8 {[%clk 0:00:18.7]} 34... Ng3 {[%clk 0:00:13.4]} 35.
Bd3 {[%clk 0:00:16.6]} 35... e4 {[%clk 0:00:13.2]} 36. Bxa6 {[%clk 0:00:15.4]}
36... Qf6 {[%clk 0:00:09]} 37. Rc1 {[%clk 0:00:10.4]} 37... Qd4+ {[%clk
0:00:08.5]} 38. Kh2 {[%clk 0:00:10.7]} 38... Nf3+ {[%clk 0:00:04.1]} 39. gxf3
{[%clk 0:00:10.2]} 39... Qf2+ {[%clk 0:00:04.6]} 40. Qg2 {[%clk 0:00:07.5]}
40... Rh7# {[%clk 0:00:05.3]} 0-1

[Event "*** Titled Tuesday Blitz"]
[Site "Chess.com"]
[Date "2021.02.02"]
[Round "5"]
[White "BilodeauA"]
[Black "Volodar_Murzin"]
[Result "0-1"]
[WhiteElo "2867"]
[BlackElo "2627"]
[TimeControl "180+1"]
[EndTime "10:59:09 PST"]
[Termination "Volodar_Murzin won by resignation"]

1. e4 {[%clk 0:03:00.9]} 1... c5 {[%clk 0:02:57.8]} 2. Nf3 {[%clk 0:03:01.4]}
2... d6 {[%clk 0:02:58]} 3. d4 {[%clk 0:03:02.2]} 3... cxd4 {[%clk 0:02:58.1]}
4. Nxd4 {[%clk 0:03:03.1]} 4... Nf6 {[%clk 0:02:58.2]} 5. Nc3 {[%clk 0:03:03.8]}
5... a6 {[%clk 0:02:58.3]} 6. Be2 {[%clk 0:03:04.6]} 6... e5 {[%clk 0:02:57.6]}
7. Nb3 {[%clk 0:03:04.9]} 7... Be7 {[%clk 0:02:57.7]} 8. O-O {[%clk 0:03:05.6]}
8... O-O {[%clk 0:02:54.7]} 9. Kh1 {[%clk 0:03:06.1]} 9... Nbd7 {[%clk
0:02:45.5]} 10. a4 {[%clk 0:03:04.6]} 10... b6 {[%clk 0:02:44]} 11. f3 {[%clk
0:03:05.2]} 11... Bb7 {[%clk 0:02:43.7]} 12. Be3 {[%clk 0:03:06]} 12... Rc8
{[%clk 0:02:43.1]} 13. Rf2 {[%clk 0:03:06.5]} 13... Qc7 {[%clk 0:02:25.1]} 14.
Bf1 {[%clk 0:03:05.9]} 14... Rfd8 {[%clk 0:02:24.3]} 15. Rd2 {[%clk 0:03:06.1]}
15... Nc5 {[%clk 0:01:59.7]} 16. Be2 {[%clk 0:02:51]} 16... Nxb3 {[%clk
0:01:08]} 17. cxb3 {[%clk 0:02:51.9]} 17... d5 {[%clk 0:01:07.5]} 18. exd5
{[%clk 0:02:10.8]} 18... Bb4 {[%clk 0:01:03.2]} 19. Bc4 {[%clk 0:02:11.4]} 19...
Bxc3 {[%clk 0:00:44.1]} 20. bxc3 {[%clk 0:02:12.3]} 20... b5 {[%clk 0:00:43.6]}
21. axb5 {[%clk 0:02:07.7]} 21... axb5 {[%clk 0:00:44.5]} 22. d6 {[%clk
0:01:52.3]} 22... Qc6 {[%clk 0:00:41.1]} 23. Be2 {[%clk 0:01:41.3]} 23... Nd5
{[%clk 0:00:35.1]} 24. Bf2 {[%clk 0:01:06.9]} 24... Nxc3 {[%clk 0:00:33.8]} 25.
Qe1 {[%clk 0:01:07.5]} 25... Rxd6 {[%clk 0:00:26.5]} 26. Rxd6 {[%clk 0:01:04.1]}
26... Qxd6 {[%clk 0:00:27.4]} 27. Bf1 {[%clk 0:00:59.4]} 27... b4 {[%clk
0:00:27]} 28. h3 {[%clk 0:00:51.6]} 28... Bd5 {[%clk 0:00:18.9]} 29. Ra6 {[%clk
0:00:50.5]} 29... Qc7 {[%clk 0:00:15.8]} 30. Ra7 {[%clk 0:00:41.2]} 30... Qd6
{[%clk 0:00:15.5]} 31. Qd2 {[%clk 0:00:37.7]} 31... Qe6 {[%clk 0:00:14.2]} 32.
Ra6 {[%clk 0:00:34.2]} 32... Qf5 {[%clk 0:00:13.3]} 33. Rd6 {[%clk 0:00:28.5]}
33... Qb1 {[%clk 0:00:10.8]} 34. Kg1 {[%clk 0:00:22.2]} 34... Qxb3 {[%clk
0:00:08.8]} 35. Bg3 {[%clk 0:00:20.7]} 35... f6 {[%clk 0:00:07.8]} 36. Kh2
{[%clk 0:00:21.4]} 36... Qa2 {[%clk 0:00:06.1]} 37. Qe3 {[%clk 0:00:19.8]} 37...
Qa8 {[%clk 0:00:04.7]} 38. Qb6 {[%clk 0:00:11.5]} 38... Qb8 {[%clk 0:00:04.6]}
39. Qa5 {[%clk 0:00:11.9]} 39... Qxd6 {[%clk 0:00:04.3]} 40. Bd3 {[%clk
0:00:08.5]} 40... Ra8 {[%clk 0:00:04.6]} 0-1

[Event "*** Titled Tuesday Blitz"]
[Site "Chess.com"]
[Date "2021.02.02"]
[Round "5"]
[White "TimKett"]
[Black "tteshan"]
[Result "1-0"]
[WhiteElo "2192"]
[BlackElo "2332"]
[TimeControl "180+1"]
[EndTime "10:59:09 PST"]
[Termination "TimKett won by resignation"]

1. e4 {[%clk 0:03:00.9]} 1... c5 {[%clk 0:02:59.4]} 2. Nf3 {[%clk 0:02:59.8]}
2... d6 {[%clk 0:02:59.6]} 3. d4 {[%clk 0:02:59.9]} 3... cxd4 {[%clk 0:02:59.4]}
4. Nxd4 {[%clk 0:03:00.4]} 4... Nf6 {[%clk 0:02:59.9]} 5. Nc3 {[%clk 0:03:00.7]}
5... Nc6 {[%clk 0:03:00.2]} 6. Bg5 {[%clk 0:02:51.9]} 6... e6 {[%clk 0:03:00.3]}
7. Qd2 {[%clk 0:02:50.8]} 7... a6 {[%clk 0:02:59.9]} 8. O-O-O {[%clk 0:02:50.5]}
8... Qc7 {[%clk 0:02:56]} 9. Bxf6 {[%clk 0:02:47.5]} 9... gxf6 {[%clk
0:02:55.4]} 10. Kb1 {[%clk 0:02:46.9]} 10... b5 {[%clk 0:02:53.8]} 11. f4 {[%clk
0:02:41.1]} 11... Bb7 {[%clk 0:02:50.2]} 12. f5 {[%clk 0:02:41]} 12... Nxd4
{[%clk 0:02:47.1]} 13. Qxd4 {[%clk 0:02:40.2]} 13... e5 {[%clk 0:02:47.4]} 14.
Qd2 {[%clk 0:02:17]} 14... Qc5 {[%clk 0:02:42]} 15. Be2 {[%clk 0:02:05.6]} 15...
Ke7 {[%clk 0:02:38.8]} 16. Bh5 {[%clk 0:01:55.5]} 16... b4 {[%clk 0:02:37]} 17.
Nd5+ {[%clk 0:01:54.5]} 17... Bxd5 {[%clk 0:02:37.4]} 18. Qxd5 {[%clk
0:01:53.8]} 18... Qxd5 {[%clk 0:02:37.8]} 19. Rxd5 {[%clk 0:01:53.5]} 19... Bh6
{[%clk 0:02:38.1]} 20. Rhd1 {[%clk 0:01:48.9]} 20... Rhd8 {[%clk 0:02:33.7]} 21.
R1d3 {[%clk 0:01:45]} 21... Rac8 {[%clk 0:02:28.3]} 22. Be2 {[%clk 0:01:41.1]}
22... Bf4 {[%clk 0:01:45.1]} 23. Rh3 {[%clk 0:01:31.5]} 23... Rg8 {[%clk
0:01:37.5]} 24. g3 {[%clk 0:01:28.4]} 24... Be3 {[%clk 0:01:29.3]} 25. Rxh7
{[%clk 0:01:23.5]} 25... Rc6 {[%clk 0:01:27.1]} 26. Bh5 {[%clk 0:01:20.6]} 26...
Rf8 {[%clk 0:01:25.4]} 27. g4 {[%clk 0:01:11.7]} 27... Rc4 {[%clk 0:01:14.3]}
28. Ra5 {[%clk 0:01:04.1]} 28... Rc6 {[%clk 0:01:00.9]} 29. a3 {[%clk 0:01:01]}
29... bxa3 {[%clk 0:00:57]} 30. Rxa3 {[%clk 0:01:00.1]} 30... Bg5 {[%clk
0:00:53.5]} 31. Rb3 {[%clk 0:00:59]} 31... Rc7 {[%clk 0:00:50.4]} 32. Rb6 {[%clk
0:00:57.9]} 32... a5 {[%clk 0:00:50.5]} 33. Ra6 {[%clk 0:00:57.8]} 33... Bd2
{[%clk 0:00:48.8]} 34. c3 {[%clk 0:00:57.9]} 34... Rb7 {[%clk 0:00:47.3]} 35.
Kc2 {[%clk 0:00:56.1]} 35... Bf4 {[%clk 0:00:47.3]} 36. Rxa5 {[%clk 0:00:55.6]}
36... Bxh2 {[%clk 0:00:46.9]} 37. b4 {[%clk 0:00:50.9]} 37... Bg1 {[%clk
0:00:31.1]} 38. Kb3 {[%clk 0:00:50.5]} 38... Be3 {[%clk 0:00:24.3]} 39. c4
{[%clk 0:00:47.9]} 39... Bc5 {[%clk 0:00:09.1]} 40. b5 {[%clk 0:00:47.1]} 40...
Bb6 {[%clk 0:00:09.2]} 41. Ra6 {[%clk 0:00:46.6]} 41... Bc5 {[%clk 0:00:09.5]}
42. Ka4 {[%clk 0:00:44.8]} 42... Bb6 {[%clk 0:00:10]} 43. Kb4 {[%clk 0:00:42.2]}
43... Bc5+ {[%clk 0:00:10.3]} 44. Ka5 {[%clk 0:00:42.4]} 44... Bd4 {[%clk
0:00:10]} 45. b6 {[%clk 0:00:38.5]} 45... Bc5 {[%clk 0:00:10.4]} 46. Kb5 {[%clk
0:00:38.6]} 46... Ke8 {[%clk 0:00:09.2]} 47. Kc6 {[%clk 0:00:37.7]} 47... Rb8
{[%clk 0:00:08.2]} 48. b7 {[%clk 0:00:35.7]} 48... Ke7 {[%clk 0:00:07.7]} 49.
Rxf7+ {[%clk 0:00:33.3]} 49... Rxf7 {[%clk 0:00:07.6]} 50. Bxf7 {[%clk 0:00:34]}
50... Kxf7 {[%clk 0:00:08.1]} 51. Ra8 {[%clk 0:00:34.5]} 51... Ba7 {[%clk
0:00:07.5]} 52. Rxa7 {[%clk 0:00:32.3]} 52... Ke7 {[%clk 0:00:08]} 53. Ra8
{[%clk 0:00:32.3]} 1-0

[Event "*** Titled Tuesday Blitz"]
[Site "Chess.com"]
[Date "2021.02.02"]
[Round "5"]
[White "johnathan113"]
[Black "BlueWizzard"]
[Result "1-0"]
[WhiteElo "2585"]
[BlackElo "2760"]
[TimeControl "180+1"]
[EndTime "10:59:11 PST"]
[Termination "johnathan113 won by resignation"]

1. e4 {[%clk 0:03:00.5]} 1... a6 {[%clk 0:03:00.9]} 2. d4 {[%clk 0:02:53.6]}
2... d6 {[%clk 0:03:01.4]} 3. Nc3 {[%clk 0:02:49.1]} 3... b5 {[%clk 0:03:01.5]}
4. Be3 {[%clk 0:02:45.4]} 4... Nd7 {[%clk 0:03:01.5]} 5. Qd2 {[%clk 0:02:45]}
5... Bb7 {[%clk 0:02:57.9]} 6. f3 {[%clk 0:02:38.5]} 6... Nb6 {[%clk 0:02:57.3]}
7. a3 {[%clk 0:02:33.6]} 7... h5 {[%clk 0:02:55.1]} 8. Nh3 {[%clk 0:02:32.9]}
8... Nf6 {[%clk 0:02:54.2]} 9. Ng5 {[%clk 0:02:33.2]} 9... e6 {[%clk 0:02:53.5]}
10. O-O-O {[%clk 0:02:31.7]} 10... Be7 {[%clk 0:02:51.1]} 11. Kb1 {[%clk
0:02:31.9]} 11... Qd7 {[%clk 0:02:49.5]} 12. Qf2 {[%clk 0:02:21.5]} 12... Nh7
{[%clk 0:02:47.7]} 13. Nxh7 {[%clk 0:02:11.4]} 13... Rxh7 {[%clk 0:02:48.6]} 14.
d5 {[%clk 0:02:06.7]} 14... e5 {[%clk 0:02:43.4]} 15. Bxb6 {[%clk 0:01:52.1]}
15... cxb6 {[%clk 0:02:44.3]} 16. Qxb6 {[%clk 0:01:52.4]} 16... Rc8 {[%clk
0:02:40.4]} 17. h4 {[%clk 0:01:49.1]} 17... Rc5 {[%clk 0:02:36.9]} 18. Qa5
{[%clk 0:01:36.8]} 18... g6 {[%clk 0:02:16.4]} 19. g3 {[%clk 0:01:30.5]} 19...
Kf8 {[%clk 0:02:15.9]} 20. Bh3 {[%clk 0:01:27.4]} 20... Qe8 {[%clk 0:02:15.7]}
21. Qb6 {[%clk 0:01:24.1]} 21... Bc8 {[%clk 0:02:12.6]} 22. Rdf1 {[%clk
0:01:13.4]} 22... Kg7 {[%clk 0:02:02]} 23. f4 {[%clk 0:01:11.2]} 23... Bxh3
{[%clk 0:01:57.6]} 24. Rxh3 {[%clk 0:01:10.8]} 24... Qc8 {[%clk 0:01:55.1]} 25.
Rh2 {[%clk 0:01:09.5]} 25... Rxc3 {[%clk 0:01:45.7]} 26. bxc3 {[%clk 0:01:09.1]}
26... Qxc3 {[%clk 0:01:46.6]} 27. fxe5 {[%clk 0:01:03.2]} 27... Qxe5 {[%clk
0:01:45.8]} 28. Rhf2 {[%clk 0:01:00.1]} 28... f5 {[%clk 0:01:46.4]} 29. Qa7
{[%clk 0:00:46.4]} 29... Kg8 {[%clk 0:01:39.4]} 30. Qb8+ {[%clk 0:00:32.7]}
30... Kg7 {[%clk 0:01:39.3]} 31. Qa7 {[%clk 0:00:29.5]} 31... Kg8 {[%clk
0:01:38.7]} 32. Qb8+ {[%clk 0:00:19]} 32... Kf7 {[%clk 0:01:37.2]} 33. Rxf5+
{[%clk 0:00:10.7]} 33... gxf5 {[%clk 0:01:37.1]} 34. Rxf5+ {[%clk 0:00:11.6]}
34... Bf6 {[%clk 0:01:37.1]} 35. Rxe5 {[%clk 0:00:10.4]} 35... Bxe5 {[%clk
0:01:38]} 36. Qb7+ {[%clk 0:00:10.4]} 36... Kg6 {[%clk 0:01:38.5]} 37. Qxa6
{[%clk 0:00:10.8]} 37... Bxg3 {[%clk 0:01:38]} 38. Qxb5 {[%clk 0:00:10.8]} 38...
Bxh4 {[%clk 0:01:37.8]} 39. Qe8+ {[%clk 0:00:11.2]} 39... Kh6 {[%clk 0:01:36.8]}
40. Qe6+ {[%clk 0:00:10.2]} 40... Kg5 {[%clk 0:01:37.2]} 41. Qxd6 {[%clk
0:00:11.1]} 41... Be1 {[%clk 0:01:35.5]} 42. Qe5+ {[%clk 0:00:10.7]} 42... Kg6
{[%clk 0:01:35.2]} 43. Qf5+ {[%clk 0:00:10.9]} 43... Kg7 {[%clk 0:01:35.7]} 44.
d6 {[%clk 0:00:11.3]} 44... Bh4 {[%clk 0:01:34.1]} 45. e5 {[%clk 0:00:09.9]}
45... Bd8 {[%clk 0:01:34.1]} 46. e6 {[%clk 0:00:09.9]} 46... Bf6 {[%clk
0:01:33.2]} 47. e7 {[%clk 0:00:09.4]} 47... Rh8 {[%clk 0:01:33.7]} 48. Qe6
{[%clk 0:00:07.6]} 48... Re8 {[%clk 0:01:32.8]} 49. a4 {[%clk 0:00:04.6]} 49...
h4 {[%clk 0:01:32.8]} 50. Qd7 {[%clk 0:00:05]} 50... Kf7 {[%clk 0:01:32.5]} 51.
Kc1 {[%clk 0:00:05.2]} 51... Rb8 {[%clk 0:01:32.9]} 52. Qf5 {[%clk 0:00:05.2]}
52... h3 {[%clk 0:01:31.9]} 53. Qxh3 {[%clk 0:00:05]} 53... Rg8 {[%clk
0:01:32.6]} 54. Qb3+ {[%clk 0:00:04.2]} 54... Kg7 {[%clk 0:01:32.1]} 55. Qxg8+
{[%clk 0:00:05.1]} 55... Kxg8 {[%clk 0:01:31.9]} 56. e8=Q+ {[%clk 0:00:06]}
56... Kg7 {[%clk 0:01:32.8]} 57. d7 {[%clk 0:00:06.7]} 57... Bg5+ {[%clk
0:01:33.4]} 58. Kb1 {[%clk 0:00:06.4]} 58... Bf6 {[%clk 0:01:34.3]} 59. Ka2
{[%clk 0:00:07.3]} 59... Kh6 {[%clk 0:01:35.2]} 60. d8=Q {[%clk 0:00:08.2]}
60... Kg5 {[%clk 0:01:36.1]} 61. Qdd7 {[%clk 0:00:07.9]} 1-0